[Event "Titled Tuesday Blitz April 12 Late 2022"]
[White "Lin, Dachey"]
[Black "Kamsky, Gata"]
[WhiteFideId "2029650"]
[BlackFideId "2000024"]
[WhiteElo "2313"]
[BlackElo "2645"]
[Result "0-1"]
[Round "05"]
[TimeControl "180+1"]
[Date "2022.04.12"]
[WhiteClock "0:00:17"]
[BlackClock "0:00:23"]

1. Nc3 {[%clk 0:03:00]}  e5 {[%clk 0:02:41]} 2. e4 {[%clk 0:03:01]}  Nf6 {[%clk 0:02:40]} 3. f4 {[%clk 0:03:01]}  d5 {[%clk 0:02:34]} 4. fxe5 {[%clk 0:02:59]}  Nxe4 {[%clk 0:02:34]} 5. Qf3 {[%clk 0:02:59]}  Nxc3 {[%clk 0:02:28]} 6. dxc3 {[%clk 0:02:59]}  c6 {[%clk 0:02:20]} 7. Bf4 {[%clk 0:02:57]}  Be6 {[%clk 0:02:12]} 8. Bd3 {[%clk 0:02:54]}  Nd7 {[%clk 0:02:11]} 9. Ne2 {[%clk 0:02:54]}  Qb6 {[%clk 0:02:08]} 10. O-O-O {[%clk 0:02:54]}  O-O-O {[%clk 0:02:06]} 11. Nd4 {[%clk 0:02:54]}  g6 {[%clk 0:01:52]} 12. Rhe1 {[%clk 0:02:36]}  Bg7 {[%clk 0:01:49]} 13. Bg3 {[%clk 0:02:30]}  Rhf8 {[%clk 0:01:45]} 14. h4 {[%clk 0:02:24]}  Rde8 {[%clk 0:01:41]} 15. h5 {[%clk 0:02:24]}  Qc7 {[%clk 0:01:32]} 16. Qe3 {[%clk 0:02:05]}  Kb8 {[%clk 0:01:23]} 17. c4 {[%clk 0:01:42]}  Nb6 {[%clk 0:01:08]} 18. Nxe6 {[%clk 0:01:28]}  Rxe6 {[%clk 0:01:03]} 19. cxd5 {[%clk 0:01:25]}  Nxd5 {[%clk 0:00:55]} 20. Qd4 {[%clk 0:01:15]}  Rfe8 {[%clk 0:00:55]} 21. Bc4 {[%clk 0:01:13]}  Bxe5 {[%clk 0:00:50]} 22. Rxe5 {[%clk 0:01:12]}  Rxe5 {[%clk 0:00:49]} 23. Bxd5 {[%clk 0:00:43]}  cxd5 {[%clk 0:00:49]} 24. Qxd5 {[%clk 0:00:27]}  Rxd5 {[%clk 0:00:44]} 25. Bxc7+ {[%clk 0:00:27]}  Kxc7 {[%clk 0:00:44]} 26. Rxd5 {[%clk 0:00:28]}  Re2 {[%clk 0:00:41]} 27. hxg6 {[%clk 0:00:28]}  hxg6 {[%clk 0:00:40]} 28. Rd2 {[%clk 0:00:27]}  Re1+ {[%clk 0:00:34]} 29. Rd1 {[%clk 0:00:27]}  Rxd1+ {[%clk 0:00:29]} 30. Kxd1 {[%clk 0:00:28]}  f5 {[%clk 0:00:28]} 31. Kd2 {[%clk 0:00:28]}  Kd6 {[%clk 0:00:28]} 32. Kd3 {[%clk 0:00:27]}  Kc5 {[%clk 0:00:26]} 33. a3 {[%clk 0:00:20]}  a5 {[%clk 0:00:25]} 34. b3 {[%clk 0:00:20]}  g5 {[%clk 0:00:25]} 35. c3 {[%clk 0:00:21]}  b5 {[%clk 0:00:23]} 36. b4+ {[%clk 0:00:18]}  axb4 {[%clk 0:00:23]} 37. axb4+ {[%clk 0:00:19]}  Kd5 {[%clk 0:00:23]} 38. c4+ {[%clk 0:00:17]}  bxc4+ {[%clk 0:00:23]} 39. Kc3 {[%clk 0:00:18]}  f4 {[%clk 0:00:22]} 40. b5 {[%clk 0:00:18]}  g4 {[%clk 0:00:22]} 41. b6 {[%clk 0:00:18]}  Kc6 {[%clk 0:00:23]} 42. Kxc4 {[%clk 0:00:19]}  f3 {[%clk 0:00:23]} 43. gxf3 {[%clk 0:00:17]}  g3 {[%clk 0:00:23]} 0-1


[Site "https://www.chess.com"]

[Event "Titled Tuesday Blitz April 12 Late 2022"]
[White "Maksimovic, Bojan"]
[Black "Sarana, Alexey"]
[WhiteFideId "14408120"]
[BlackFideId "24133795"]
[WhiteElo "2448"]
[BlackElo "2666"]
[Result "1-0"]
[Round "05"]
[TimeControl "180+1"]
[Date "2022.04.12"]
[WhiteClock "0:01:48"]
[BlackClock "0:01:21"]

1. d4 {[%clk 0:03:00]}  Nf6 {[%clk 0:02:59]} 2. c4 {[%clk 0:03:00]}  e6 {[%clk 0:03:00]} 3. Nf3 {[%clk 0:02:59]}  d5 {[%clk 0:03:01]} 4. g3 {[%clk 0:02:59]}  Bb4+ {[%clk 0:03:01]} 5. Bd2 {[%clk 0:02:59]}  Be7 {[%clk 0:03:01]} 6. Bg2 {[%clk 0:02:59]}  c6 {[%clk 0:03:02]} 7. O-O {[%clk 0:02:58]}  Nbd7 {[%clk 0:03:03]} 8. Qc2 {[%clk 0:02:57]}  b6 {[%clk 0:03:02]} 9. b3 {[%clk 0:02:57]}  Bb7 {[%clk 0:03:01]} 10. Bc3 {[%clk 0:02:56]}  Rc8 {[%clk 0:03:00]} 11. Nbd2 {[%clk 0:02:55]}  c5 {[%clk 0:03:00]} 12. dxc5 {[%clk 0:02:55]}  Nxc5 {[%clk 0:03:00]} 13. Qb2 {[%clk 0:02:52]}  O-O {[%clk 0:02:53]} 14. cxd5 {[%clk 0:02:52]}  Bxd5 {[%clk 0:02:48]} 15. Rfd1 {[%clk 0:02:48]}  Qc7 {[%clk 0:02:48]} 16. Rac1 {[%clk 0:02:37]}  Qb7 {[%clk 0:02:48]} 17. Nh4 {[%clk 0:02:35]}  Rfd8 {[%clk 0:02:42]} 18. Bxd5 {[%clk 0:02:29]}  Rxd5 {[%clk 0:02:43]} 19. Nc4 {[%clk 0:02:23]}  Rxd1+ {[%clk 0:02:33]} 20. Rxd1 {[%clk 0:02:24]}  Na4 {[%clk 0:02:33]} 21. bxa4 {[%clk 0:02:09]}  Rxc4 {[%clk 0:02:34]} 22. Nf3 {[%clk 0:02:09]}  Rxa4 {[%clk 0:02:11]} 23. Bxf6 {[%clk 0:02:09]}  gxf6 {[%clk 0:02:09]} 24. Qb5 {[%clk 0:02:06]}  Qe4 {[%clk 0:01:33]} 25. Qe8+ {[%clk 0:01:57]}  Bf8 {[%clk 0:01:33]} 26. Rd7 {[%clk 0:01:54]}  Qg6 {[%clk 0:01:27]} 27. Rd8 {[%clk 0:01:54]}  Qb1+ {[%clk 0:01:21]} 28. Kg2 {[%clk 0:01:53]}  Qb4 {[%clk 0:01:21]} 29. Rd7 {[%clk 0:01:48]} 1-0


[Site "https://www.chess.com"]

[Event "Titled Tuesday Blitz April 12 Late 2022"]
[White "Maranhao,Jose Renato Ruiz"]
[Black "Prohorov, Olexandr"]
[WhiteFideId "2135175"]
[BlackFideId "14105578"]
[WhiteElo "1970"]
[BlackElo "1993"]
[Result "0-1"]
[Round "05"]
[TimeControl "180+1"]
[Date "2022.04.13"]
[WhiteClock "0:00:02"]
[BlackClock "0:01:34"]

1. e4 {[%clk 0:03:00]}  c5 {[%clk 0:02:57]} 2. d4 {[%clk 0:03:00]}  cxd4 {[%clk 0:02:56]} 3. c3 {[%clk 0:03:01]}  dxc3 {[%clk 0:02:55]} 4. Nxc3 {[%clk 0:03:02]}  Nc6 {[%clk 0:02:55]} 5. Nf3 {[%clk 0:03:02]}  d6 {[%clk 0:02:52]} 6. Bc4 {[%clk 0:03:03]}  e6 {[%clk 0:02:47]} 7. O-O {[%clk 0:03:02]}  Nf6 {[%clk 0:02:46]} 8. Qe2 {[%clk 0:02:57]}  Be7 {[%clk 0:02:39]} 9. Rd1 {[%clk 0:02:56]}  Qc7 {[%clk 0:02:31]} 10. Bg5 {[%clk 0:02:53]}  O-O {[%clk 0:02:25]} 11. Nb5 {[%clk 0:02:48]}  Qb8 {[%clk 0:02:24]} 12. Bxf6 {[%clk 0:02:45]}  gxf6 {[%clk 0:02:10]} 13. Rac1 {[%clk 0:01:21]}  a6 {[%clk 0:02:08]} 14. Nbd4 {[%clk 0:01:11]}  Nxd4 {[%clk 0:02:08]} 15. Rxd4 {[%clk 0:00:56]}  Kh8 {[%clk 0:01:59]} 16. Bb3 {[%clk 0:00:21]}  Rg8 {[%clk 0:01:57]} 17. Rdc4 {[%clk 0:00:16]}  b5 {[%clk 0:01:47]} 18. Rc7 {[%clk 0:00:15]}  Ra7 {[%clk 0:01:48]} 19. Rxa7 {[%clk 0:00:05]}  Qxa7 {[%clk 0:01:49]} 20. Qd3 {[%clk 0:00:02]}  Bb7 {[%clk 0:01:44]} 21. Rc7 {[%clk 0:00:02]}  Re8 {[%clk 0:01:39]} 22. Rxe7 {[%clk 0:00:01]}  Rxe7 {[%clk 0:01:38]} 23. Qxd6 {[%clk 0:00:02]}  Bxe4 {[%clk 0:01:35]} 24. Qd8+ {[%clk 0:00:01]}  Kg7 {[%clk 0:01:36]} 25. Nh4 {[%clk 0:00:01]}  Qd7 {[%clk 0:01:35]} 26. Qxd7 {[%clk 0:00:01]}  Rxd7 {[%clk 0:01:36]} 27. f3 {[%clk 0:00:02]}  Bd5 {[%clk 0:01:35]} 28. Bc2 {[%clk 0:00:02]}  Bxa2 {[%clk 0:01:34]} 29. Bb3 {[%clk 0:00:02]}  Bxb3 {[%clk 0:01:34]} 0-1


[Site "https://www.chess.com"]

[Event "Titled Tuesday Blitz April 12 Late 2022"]
[White "Martinez Alcantara, Jose Eduardo"]
[Black "Mikhailov, Viacheslav"]
[WhiteFideId "3805662"]
[BlackFideId "4187369"]
[WhiteElo "2690"]
[BlackElo "2381"]
[Result "1-0"]
[Round "05"]
[TimeControl "180+1"]
[Date "2022.04.12"]
[WhiteClock "0:00:12"]
[BlackClock "0:00:03"]

1. e4 {[%clk 0:03:00]}  d6 {[%clk 0:02:59]} 2. d4 {[%clk 0:03:00]}  Nf6 {[%clk 0:02:57]} 3. Nc3 {[%clk 0:03:01]}  g6 {[%clk 0:02:56]} 4. g3 {[%clk 0:03:01]}  Bg7 {[%clk 0:02:56]} 5. Bg2 {[%clk 0:03:01]}  O-O {[%clk 0:02:54]} 6. Nge2 {[%clk 0:03:02]}  e5 {[%clk 0:02:54]} 7. O-O {[%clk 0:03:02]}  Nc6 {[%clk 0:02:53]} 8. d5 {[%clk 0:02:45]}  Ne7 {[%clk 0:02:53]} 9. h3 {[%clk 0:02:44]}  c6 {[%clk 0:02:52]} 10. dxc6 {[%clk 0:02:44]}  bxc6 {[%clk 0:02:48]} 11. b3 {[%clk 0:02:43]}  Bb7 {[%clk 0:02:39]} 12. Ba3 {[%clk 0:02:41]}  d5 {[%clk 0:02:39]} 13. Re1 {[%clk 0:02:33]}  Re8 {[%clk 0:02:38]} 14. exd5 {[%clk 0:02:16]}  cxd5 {[%clk 0:02:39]} 15. Nb5 {[%clk 0:02:15]}  Nf5 {[%clk 0:02:30]} 16. c4 {[%clk 0:02:08]}  Qb6 {[%clk 0:02:04]} 17. Nbc3 {[%clk 0:01:35]}  dxc4 {[%clk 0:01:45]} 18. Bxb7 {[%clk 0:01:34]}  Qxb7 {[%clk 0:01:46]} 19. bxc4 {[%clk 0:01:34]}  Rad8 {[%clk 0:01:41]} 20. Qa4 {[%clk 0:01:24]}  e4 {[%clk 0:01:32]} 21. Rab1 {[%clk 0:01:17]}  Qc8 {[%clk 0:01:29]} 22. Rbd1 {[%clk 0:01:04]}  e3 {[%clk 0:01:26]} 23. f3 {[%clk 0:01:04]}  Nxg3 {[%clk 0:01:22]} 24. Nxg3 {[%clk 0:01:03]}  Qxh3 {[%clk 0:01:22]} 25. Nce2 {[%clk 0:01:01]}  Nh5 {[%clk 0:01:06]} 26. Rxd8 {[%clk 0:00:40]}  Rxd8 {[%clk 0:01:07]} 27. Qa5 {[%clk 0:00:41]}  Rd2 {[%clk 0:00:36]} 28. Qxa7 {[%clk 0:00:41]}  h6 {[%clk 0:00:22]} 29. Bd6 {[%clk 0:00:37]}  Nxg3 {[%clk 0:00:18]} 30. Bxg3 {[%clk 0:00:38]}  Rxe2 {[%clk 0:00:16]} 31. Qb8+ {[%clk 0:00:37]}  Kh7 {[%clk 0:00:14]} 32. Rxe2 {[%clk 0:00:38]}  Qf5 {[%clk 0:00:14]} 33. Qf4 {[%clk 0:00:36]}  Qb1+ {[%clk 0:00:13]} 34. Re1 {[%clk 0:00:36]}  Qxa2 {[%clk 0:00:13]} 35. Qxe3 {[%clk 0:00:34]}  Qxc4 {[%clk 0:00:13]} 36. Be5 {[%clk 0:00:30]}  Bf8 {[%clk 0:00:13]} 37. Qf4 {[%clk 0:00:27]}  Bc5+ {[%clk 0:00:11]} 38. Kh1 {[%clk 0:00:26]}  Qe6 {[%clk 0:00:10]} 39. Kg2 {[%clk 0:00:23]}  Qa2+ {[%clk 0:00:09]} 40. Kh1 {[%clk 0:00:15]}  Qe6 {[%clk 0:00:08]} 41. Qg4 {[%clk 0:00:15]}  f5 {[%clk 0:00:08]} 42. Qg3 {[%clk 0:00:15]}  h5 {[%clk 0:00:05]} 43. Bc3 {[%clk 0:00:14]}  Qc4 {[%clk 0:00:03]} 44. Qc7+ {[%clk 0:00:13]}  Kh6 {[%clk 0:00:04]} 45. Bg7+ {[%clk 0:00:12]}  Kg5 {[%clk 0:00:03]} 46. Qg3+ {[%clk 0:00:12]} 1-0


[Site "https://www.chess.com"]

[Event "Titled Tuesday Blitz April 12 Late 2022"]
[White "Martinez Reyes, Pedro Ramon"]
[Black "Abdyzhapar, Asylbek"]
[WhiteFideId "3901807"]
[BlackFideId "13800337"]
[WhiteElo "2410"]
[BlackElo "2331"]
[Result "1-0"]
[Round "05"]
[TimeControl "180+1"]
[Date "2022.04.13"]
[WhiteClock "0:00:20"]
[BlackClock "0:00:12"]

1. Nf3 {[%clk 0:02:53]}  Nf6 {[%clk 0:02:59]} 2. c4 {[%clk 0:02:45]}  g6 {[%clk 0:02:58]} 3. Nc3 {[%clk 0:02:45]}  Bg7 {[%clk 0:02:58]} 4. d4 {[%clk 0:02:45]}  d6 {[%clk 0:02:58]} 5. e3 {[%clk 0:02:45]}  O-O {[%clk 0:02:57]} 6. Be2 {[%clk 0:02:46]}  c5 {[%clk 0:02:56]} 7. O-O {[%clk 0:02:44]}  Nbd7 {[%clk 0:02:51]} 8. d5 {[%clk 0:02:44]}  a6 {[%clk 0:02:51]} 9. Qc2 {[%clk 0:02:42]}  b5 {[%clk 0:02:49]} 10. cxb5 {[%clk 0:02:42]}  axb5 {[%clk 0:02:49]} 11. Bxb5 {[%clk 0:02:42]}  Ba6 {[%clk 0:02:48]} 12. Rd1 {[%clk 0:02:32]}  Bxb5 {[%clk 0:02:44]} 13. Nxb5 {[%clk 0:02:32]}  Qb6 {[%clk 0:02:43]} 14. a4 {[%clk 0:02:31]}  Rfb8 {[%clk 0:02:43]} 15. Ra3 {[%clk 0:02:30]}  Ne8 {[%clk 0:02:41]} 16. Nd2 {[%clk 0:02:25]}  Nc7 {[%clk 0:02:38]} 17. Nc4 {[%clk 0:02:25]}  Qb7 {[%clk 0:02:38]} 18. Nxc7 {[%clk 0:01:50]}  Qxc7 {[%clk 0:02:37]} 19. Rad3 {[%clk 0:01:44]}  Ne5 {[%clk 0:02:26]} 20. Nxe5 {[%clk 0:01:44]}  Bxe5 {[%clk 0:02:26]} 21. b3 {[%clk 0:01:44]}  Rb7 {[%clk 0:02:18]} 22. Bd2 {[%clk 0:01:36]}  Rab8 {[%clk 0:02:14]} 23. Qc4 {[%clk 0:01:36]}  Qd7 {[%clk 0:02:04]} 24. Be1 {[%clk 0:01:30]}  h5 {[%clk 0:02:01]} 25. a5 {[%clk 0:01:22]}  Qb5 {[%clk 0:02:00]} 26. g3 {[%clk 0:01:11]}  Ra7 {[%clk 0:01:58]} 27. Rc1 {[%clk 0:01:00]}  Qa6 {[%clk 0:01:54]} 28. Qxa6 {[%clk 0:00:56]}  Rxa6 {[%clk 0:01:54]} 29. Rc4 {[%clk 0:00:56]}  Rb5 {[%clk 0:01:53]} 30. b4 {[%clk 0:00:54]}  cxb4 {[%clk 0:01:50]} 31. Bxb4 {[%clk 0:00:50]}  f5 {[%clk 0:01:43]} 32. Bd2 {[%clk 0:00:49]}  Kf7 {[%clk 0:01:42]} 33. Rc6 {[%clk 0:00:49]}  Rxd5 {[%clk 0:01:37]} 34. Rxd5 {[%clk 0:00:43]}  Rxc6 {[%clk 0:01:37]} 35. Rb5 {[%clk 0:00:44]}  Rc2 {[%clk 0:01:35]} 36. a6 {[%clk 0:00:37]}  Rc8 {[%clk 0:00:50]} 37. Rb7 {[%clk 0:00:26]}  Ra8 {[%clk 0:00:47]} 38. a7 {[%clk 0:00:25]}  Ke6 {[%clk 0:00:44]} 39. f4 {[%clk 0:00:21]}  Bf6 {[%clk 0:00:38]} 40. Ba5 {[%clk 0:00:21]}  Kd5 {[%clk 0:00:30]} 41. Bb6 {[%clk 0:00:20]}  Kc6 {[%clk 0:00:23]} 42. Rb8 {[%clk 0:00:20]}  Rxa7 {[%clk 0:00:23]} 43. Bxa7 {[%clk 0:00:21]}  Kd5 {[%clk 0:00:23]} 44. Bd4 {[%clk 0:00:20]}  e5 {[%clk 0:00:23]} 45. fxe5 {[%clk 0:00:21]}  dxe5 {[%clk 0:00:23]} 46. Rb6 {[%clk 0:00:20]}  Bh8 {[%clk 0:00:19]} 47. Rb8 {[%clk 0:00:20]}  Bg7 {[%clk 0:00:18]} 48. Rd8+ {[%clk 0:00:20]}  Ke4 {[%clk 0:00:17]} 49. Ba7 {[%clk 0:00:21]}  Bh6 {[%clk 0:00:14]} 50. Kf2 {[%clk 0:00:21]}  Bg5 {[%clk 0:00:13]} 51. Rg8 {[%clk 0:00:21]}  f4 {[%clk 0:00:12]} 52. exf4 {[%clk 0:00:21]}  exf4 {[%clk 0:00:12]} 53. Rxg6 {[%clk 0:00:21]}  Kf5 {[%clk 0:00:13]} 54. Ra6 {[%clk 0:00:18]}  fxg3+ {[%clk 0:00:12]} 55. Kxg3 {[%clk 0:00:19]}  h4+ {[%clk 0:00:12]} 56. Kh3 {[%clk 0:00:19]}  Bf6 {[%clk 0:00:12]} 57. Bf2 {[%clk 0:00:20]}  Be5 {[%clk 0:00:12]} 58. Bxh4 {[%clk 0:00:20]} 1-0


[Site "https://www.chess.com"]

[Event "Titled Tuesday Blitz April 12 Late 2022"]
[White "Mikhalsky, Vladimir"]
[Black "Zakhartsov, Vladimir"]
[WhiteFideId "14144352"]
[BlackFideId "4145097"]
[WhiteElo "2301"]
[BlackElo "2491"]
[Result "0-1"]
[Round "05"]
[TimeControl "180+1"]
[Date "2022.04.13"]
[WhiteClock "0:00:39"]
[BlackClock "0:01:59"]

1. c4 {[%clk 0:02:58]}  Nf6 {[%clk 0:02:58]} 2. Nc3 {[%clk 0:02:58]}  e6 {[%clk 0:02:56]} 3. e4 {[%clk 0:02:58]}  c5 {[%clk 0:02:55]} 4. e5 {[%clk 0:02:55]}  Ng8 {[%clk 0:02:55]} 5. Nf3 {[%clk 0:02:50]}  Nc6 {[%clk 0:02:55]} 6. Bd3 {[%clk 0:02:50]}  d6 {[%clk 0:02:53]} 7. exd6 {[%clk 0:02:48]}  Bxd6 {[%clk 0:02:54]} 8. Bb1 {[%clk 0:02:44]}  Nf6 {[%clk 0:02:50]} 9. O-O {[%clk 0:02:42]}  O-O {[%clk 0:02:51]} 10. Nb5 {[%clk 0:02:37]}  e5 {[%clk 0:02:47]} 11. Re1 {[%clk 0:02:23]}  Bg4 {[%clk 0:02:46]} 12. h3 {[%clk 0:02:22]}  Bh5 {[%clk 0:02:45]} 13. Nxd6 {[%clk 0:02:14]}  Qxd6 {[%clk 0:02:44]} 14. b3 {[%clk 0:01:55]}  Rfe8 {[%clk 0:02:37]} 15. Bb2 {[%clk 0:01:45]}  e4 {[%clk 0:02:36]} 16. Bxf6 {[%clk 0:01:36]}  exf3 {[%clk 0:02:34]} 17. Bc3 {[%clk 0:01:30]}  Nd4 {[%clk 0:02:18]} 18. Bxd4 {[%clk 0:01:00]}  Qxd4 {[%clk 0:02:15]} 19. Re3 {[%clk 0:00:44]}  Rxe3 {[%clk 0:02:00]} 20. fxe3 {[%clk 0:00:42]}  f2+ {[%clk 0:02:00]} 21. Kxf2 {[%clk 0:00:39]}  Qf6+ {[%clk 0:01:59]} 0-1


[Site "https://www.chess.com"]

[Event "Titled Tuesday Blitz April 12 Late 2022"]
[White "Moroni, Luca Jr"]
[Black "Minko, Dmitry"]
[WhiteFideId "865834"]
[BlackFideId "24188468"]
[WhiteElo "2573"]
[BlackElo "1928"]
[Result "1-0"]
[Round "05"]
[TimeControl "180+1"]
[Date "2022.04.12"]
[WhiteClock "0:00:58"]
[BlackClock "0:00:01"]

1. d4 {[%clk 0:03:00]}  d5 {[%clk 0:02:59]} 2. Bf4 {[%clk 0:02:56]}  Nf6 {[%clk 0:02:57]} 3. e3 {[%clk 0:02:56]}  e6 {[%clk 0:02:55]} 4. Nf3 {[%clk 0:02:56]}  c5 {[%clk 0:02:55]} 5. Nbd2 {[%clk 0:02:55]}  Nc6 {[%clk 0:02:55]} 6. c3 {[%clk 0:02:54]}  Nh5 {[%clk 0:02:49]} 7. Bg5 {[%clk 0:02:47]}  Qb6 {[%clk 0:02:41]} 8. Qb3 {[%clk 0:02:44]}  h6 {[%clk 0:02:33]} 9. Bh4 {[%clk 0:02:43]}  g5 {[%clk 0:02:32]} 10. Bg3 {[%clk 0:02:37]}  c4 {[%clk 0:02:21]} 11. Qxb6 {[%clk 0:02:35]}  axb6 {[%clk 0:02:22]} 12. a3 {[%clk 0:02:34]}  Nxg3 {[%clk 0:02:21]} 13. hxg3 {[%clk 0:02:33]}  Bg7 {[%clk 0:02:21]} 14. O-O-O {[%clk 0:02:30]}  b5 {[%clk 0:02:05]} 15. Re1 {[%clk 0:02:30]}  f5 {[%clk 0:01:53]} 16. Be2 {[%clk 0:02:21]}  O-O {[%clk 0:01:28]} 17. Bd1 {[%clk 0:02:19]}  Bd7 {[%clk 0:01:21]} 18. Nh2 {[%clk 0:02:04]}  e5 {[%clk 0:01:12]} 19. f4 {[%clk 0:01:55]}  exd4 {[%clk 0:01:09]} 20. exd4 {[%clk 0:01:55]}  Rae8 {[%clk 0:00:49]} 21. Nhf3 {[%clk 0:01:53]}  Rxe1 {[%clk 0:00:36]} 22. Rxe1 {[%clk 0:01:52]}  Bf6 {[%clk 0:00:34]} 23. Ne5 {[%clk 0:01:48]}  Nxe5 {[%clk 0:00:32]} 24. dxe5 {[%clk 0:01:44]}  Be7 {[%clk 0:00:31]} 25. Nf3 {[%clk 0:01:42]}  Bc6 {[%clk 0:00:10]} 26. Nd4 {[%clk 0:01:40]}  Kh7 {[%clk 0:00:08]} 27. Bc2 {[%clk 0:01:37]}  gxf4 {[%clk 0:00:05]} 28. gxf4 {[%clk 0:01:33]}  Bh4 {[%clk 0:00:05]} 29. Rf1 {[%clk 0:01:15]}  Kg6 {[%clk 0:00:06]} 30. g4 {[%clk 0:01:15]}  Kf7 {[%clk 0:00:02]} 31. Nxf5 {[%clk 0:01:06]}  Bd8 {[%clk 0:00:02]} 32. Nxh6+ {[%clk 0:01:05]}  Kg7 {[%clk 0:00:01]} 33. Nf5+ {[%clk 0:01:05]}  Kf7 {[%clk 0:00:01]} 34. Rh1 {[%clk 0:01:02]}  d4 {[%clk 0:00:01]} 35. Rh7+ {[%clk 0:01:01]}  Ke6 {[%clk 0:00:01]} 36. Nxd4+ {[%clk 0:01:00]}  Kd5 {[%clk 0:00:01]} 37. Bf5 {[%clk 0:00:58]} 1-0


[Site "https://www.chess.com"]

[Event "Titled Tuesday Blitz April 12 Late 2022"]
[White "Narayanan.S.L"]
[Black "Lewicki, Miroslaw"]
[WhiteFideId "5058422"]
[BlackFideId "1113380"]
[WhiteElo "2494"]
[BlackElo "2283"]
[Result "1-0"]
[Round "05"]
[TimeControl "180+1"]
[Date "2022.04.12"]
[WhiteClock "0:00:28"]
[BlackClock "0:00:01"]

1. Nc3 {[%clk 0:02:59]}  Nf6 {[%clk 0:02:55]} 2. d4 {[%clk 0:02:58]}  g6 {[%clk 0:02:46]} 3. e4 {[%clk 0:02:58]}  d6 {[%clk 0:02:47]} 4. Bg5 {[%clk 0:02:58]}  Bg7 {[%clk 0:02:47]} 5. e5 {[%clk 0:02:57]}  Nfd7 {[%clk 0:02:38]} 6. f4 {[%clk 0:02:57]}  h6 {[%clk 0:02:30]} 7. Bh4 {[%clk 0:02:56]}  g5 {[%clk 0:02:30]} 8. Bf2 {[%clk 0:02:51]}  gxf4 {[%clk 0:02:27]} 9. e6 {[%clk 0:02:51]}  fxe6 {[%clk 0:02:24]} 10. Qh5+ {[%clk 0:02:50]}  Kf8 {[%clk 0:02:25]} 11. Nh3 {[%clk 0:02:50]}  Nf6 {[%clk 0:02:20]} 12. Qe2 {[%clk 0:02:49]}  e5 {[%clk 0:02:04]} 13. dxe5 {[%clk 0:02:48]}  dxe5 {[%clk 0:02:04]} 14. Qxe5 {[%clk 0:02:43]}  Nd5 {[%clk 0:02:04]} 15. Qe4 {[%clk 0:02:18]}  Nxc3 {[%clk 0:01:59]} 16. Qxf4+ {[%clk 0:02:18]}  Kg8 {[%clk 0:01:50]} 17. Bc4+ {[%clk 0:02:16]}  Nd5 {[%clk 0:01:47]} 18. O-O {[%clk 0:02:16]}  c6 {[%clk 0:01:36]} 19. Bd4 {[%clk 0:02:10]}  Bxd4+ {[%clk 0:01:31]} 20. Qxd4 {[%clk 0:02:09]}  Qb6 {[%clk 0:01:30]} 21. Rad1 {[%clk 0:02:05]}  Qxd4+ {[%clk 0:01:29]} 22. Rxd4 {[%clk 0:02:05]}  Kg7 {[%clk 0:01:22]} 23. Nf4 {[%clk 0:01:51]}  Nxf4 {[%clk 0:00:58]} 24. Rdxf4 {[%clk 0:01:51]}  h5 {[%clk 0:00:31]} 25. Rf7+ {[%clk 0:01:45]}  Kh6 {[%clk 0:00:31]} 26. Rxe7 {[%clk 0:01:45]}  Nd7 {[%clk 0:00:31]} 27. Re6+ {[%clk 0:01:42]}  Kg7 {[%clk 0:00:30]} 28. Re7+ {[%clk 0:01:40]}  Kh6 {[%clk 0:00:30]} 29. Rff7 {[%clk 0:01:27]}  Rf8 {[%clk 0:00:22]} 30. Re6+ {[%clk 0:01:15]}  Kg5 {[%clk 0:00:21]} 31. h4+ {[%clk 0:01:09]}  Kxh4 {[%clk 0:00:18]} 32. Rg7 {[%clk 0:01:08]}  Nc5 {[%clk 0:00:15]} 33. Kh2 {[%clk 0:00:55]}  Rf3 {[%clk 0:00:13]} 34. Re5 {[%clk 0:00:42]}  Rf2 {[%clk 0:00:07]} 35. Rxc5 {[%clk 0:00:42]}  Rxc2 {[%clk 0:00:05]} 36. Bf1 {[%clk 0:00:40]}  Rxb2 {[%clk 0:00:03]} 37. Bd3 {[%clk 0:00:29]}  Bh3 {[%clk 0:00:02]} 38. Bc2 {[%clk 0:00:27]}  Bxg2 {[%clk 0:00:02]} 39. Rc4+ {[%clk 0:00:27]}  Be4 {[%clk 0:00:01]} 40. Rxe4# {[%clk 0:00:28]} 1-0


[Site "https://www.chess.com"]

[Event "Titled Tuesday Blitz April 12 Late 2022"]
[White "Nozdrachev, Leonid"]
[Black "Kavyev, Ruslan"]
[WhiteFideId "24113433"]
[BlackFideId "34110981"]
[WhiteElo "2242"]
[BlackElo "2182"]
[Result "0-1"]
[Round "05"]
[TimeControl "180+1"]
[Date "2022.04.13"]
[WhiteClock "0:00:02"]
[BlackClock "0:00:19"]

1. e4 {[%clk 0:03:00]}  c5 {[%clk 0:02:51]} 2. c3 {[%clk 0:02:59]}  d5 {[%clk 0:02:50]} 3. exd5 {[%clk 0:02:57]}  Qxd5 {[%clk 0:02:51]} 4. d4 {[%clk 0:02:57]}  Nc6 {[%clk 0:02:51]} 5. Nf3 {[%clk 0:02:56]}  Bf5 {[%clk 0:02:51]} 6. Be3 {[%clk 0:02:53]}  cxd4 {[%clk 0:02:40]} 7. cxd4 {[%clk 0:02:54]}  Bxb1 {[%clk 0:02:39]} 8. Qxb1 {[%clk 0:02:50]}  e6 {[%clk 0:02:35]} 9. a3 {[%clk 0:02:47]}  Nf6 {[%clk 0:02:33]} 10. Bd3 {[%clk 0:02:37]}  Bd6 {[%clk 0:02:28]} 11. O-O {[%clk 0:02:35]}  O-O {[%clk 0:02:28]} 12. Bg5 {[%clk 0:02:32]}  Nxd4 {[%clk 0:02:05]} 13. Nxd4 {[%clk 0:02:07]}  Qxg5 {[%clk 0:02:03]} 14. Nf3 {[%clk 0:02:06]}  Qf4 {[%clk 0:01:50]} 15. Rd1 {[%clk 0:02:02]}  h6 {[%clk 0:01:41]} 16. Qc1 {[%clk 0:02:00]}  Rfd8 {[%clk 0:01:38]} 17. Qxf4 {[%clk 0:01:55]}  Bxf4 {[%clk 0:01:39]} 18. g3 {[%clk 0:01:56]}  Bc7 {[%clk 0:01:33]} 19. Rac1 {[%clk 0:01:55]}  Bb6 {[%clk 0:01:33]} 20. h3 {[%clk 0:01:45]}  g5 {[%clk 0:01:26]} 21. Kg2 {[%clk 0:01:44]}  Kg7 {[%clk 0:01:25]} 22. Ne5 {[%clk 0:01:40]}  Rd4 {[%clk 0:01:05]} 23. Nc4 {[%clk 0:01:28]}  Rad8 {[%clk 0:00:51]} 24. Be2 {[%clk 0:01:20]}  Bc7 {[%clk 0:00:37]} 25. Bf3 {[%clk 0:01:19]}  b5 {[%clk 0:00:32]} 26. Rxd4 {[%clk 0:01:02]}  Rxd4 {[%clk 0:00:33]} 27. Ne3 {[%clk 0:00:58]}  Bb6 {[%clk 0:00:34]} 28. Rc2 {[%clk 0:00:43]}  Ne4 {[%clk 0:00:31]} 29. b3 {[%clk 0:00:34]}  Nd2 {[%clk 0:00:29]} 30. Bc6 {[%clk 0:00:27]}  a6 {[%clk 0:00:25]} 31. a4 {[%clk 0:00:25]}  b4 {[%clk 0:00:23]} 32. Nc4 {[%clk 0:00:21]}  Nxc4 {[%clk 0:00:23]} 33. bxc4 {[%clk 0:00:19]}  Bc5 {[%clk 0:00:22]} 34. Bb7 {[%clk 0:00:16]}  a5 {[%clk 0:00:22]} 35. Bf3 {[%clk 0:00:14]}  Rd3 {[%clk 0:00:21]} 36. Be2 {[%clk 0:00:13]}  Ra3 {[%clk 0:00:22]} 37. Rd2 {[%clk 0:00:12]}  b3 {[%clk 0:00:20]} 38. Rd7 {[%clk 0:00:11]}  b2 {[%clk 0:00:20]} 39. Rd1 {[%clk 0:00:08]}  Rxa4 {[%clk 0:00:20]} 40. Rb1 {[%clk 0:00:07]}  Rb4 {[%clk 0:00:19]} 41. Bd1 {[%clk 0:00:03]}  Bd4 {[%clk 0:00:19]} 42. Kf3 {[%clk 0:00:01]}  a4 {[%clk 0:00:19]} 43. Ke4 {[%clk 0:00:02]}  e5 {[%clk 0:00:19]} 0-1


[Site "https://www.chess.com"]